[Event "1st Semana Santa Torrevieja 2022"]
[Site "Torrevieja Alicante"]
[Date "2022.04.17"]
[Round "8.13"]
[White "Rodriguez Ferraz, Borja"]
[Black "Aagaard, Jacob"]
[Result "0-1"]
[ECO "D35"]
[WhiteElo "2223"]
[BlackElo "2465"]
[Annotator "TA"]
[PlyCount "26"]
[EventDate "2022.04.12"]
[EventType "swiss"]
[EventCountry "ESP"]
[SourceTitle "playchess.com"]
[Source "ChessBase"]
[SourceQuality "1"]
[TimeControl "5400+30"]

{[%evp 16,26,-16,-22,-23,-17,-27,-26,-31,-59,-56,-44,-51]} 1. d4 {[%emt 0:02:42]} Nf6 {[%emt 0:00:10]} 2. c4 {[%emt 0:00:30]} e6 {[%emt 0:00:06]} 3. Nf3 {[%emt 0:00:14]} d5 {[%emt 1:31:44]} 4. Nc3 {[%emt 1:29:04]} c6 {[%emt 0:00:00]} 5. cxd5 {[%emt 0:00:00]} exd5 {[%emt 0:00:00]} 6. Bg5 {[%emt 0:01:00][%cal Bc1g5,Bg5h4,Bh4g3][%mdl 32]} h6 {[%emt 0:00:00]} 7. Bh4 {[%emt 0:00:30]} Bf5 {[%emt 0:02:00]} 8. Qb3 {[%emt 0:00:30]} g5 {[%emt 0:00:00]} 9. Bg3 Qb6 {[%emt 0:01:00] D35: Queen's Gambit Declined: Exchange Variation.} 10. e3 {[%emt 0:01:00]} Nbd7 {[%emt 0:00:30]} 11. Be2 {[%emt 0:00:30]} Nh5 {[%emt 0:00:30]} 12. Rc1 {[%emt 0:00:30]} Qxb3 {[%emt 0:00:00]} 13. axb3 {[%emt 0:00:30] [#]} Nxg3 $146 {[%emt 0:00:00] White got outplayed after the opening.  Weighted Error Value: White=0.08 (flawless) /Black=0.00 (flawless)} ({Predecessor:} 13... Be7 14. Bc7 Ng7 15. h3 Ne6 16. Bh2 h5 17. O-O f6 18. Rfe1 Kf7 19. e4 dxe4 {0-1 (51) Sanchez Millan,E (1978)-Ramirez Garcia,J (2176) Madrid 2010}) 0-1

[Event "1st Semana Santa Torrevieja 2022"]
[Site "Torrevieja Alicante"]
[Date "2022.04.17"]
[Round "8.14"]
[White "Batsiashvili, Nino"]
[Black "Gonzalez Guedes, Iyan"]
[Result "1-0"]
[ECO "E71"]
[WhiteElo "2491"]
[BlackElo "2251"]
[Annotator "TA"]
[PlyCount "63"]
[EventDate "2022.04.12"]
[EventType "swiss"]
[EventCountry "ESP"]
[SourceTitle "playchess.com"]
[Source "ChessBase"]
[SourceQuality "1"]
[TimeControl "5400+30"]

{[%evp 13,63,45,53,58,56,35,50,34,42,47,43,19,69,67,50,50,54,35,38,24,51,50,53,54,55,27,29,27,66,69,49,47,138,143,129,133,139,144,206,206,206,206,390,389,357,341,469,459,500,495,465,374]} 1. d4 {[%emt 0:00:03]} Nf6 {[%emt 0:00:20]} 2. c4 {[%emt 0:00:22]} g6 {[%emt 0:00:13]} 3. Nc3 {[%emt 0:00:05]} Bg7 {[%emt 0:00:06]} 4. e4 {[%emt 0:00:04]} d6 {[%emt 0:00:09]} 5. h3 {[%emt 0:00:07]} O-O {[%emt 0:00:56]} 6. Be3 {[%emt 0:00:03]} e5 {[%emt 0:02:01]} 7. d5 {[%emt 0:00:06]} a5 {[%emt 0:00:06]} 8. g4 {[%emt 0:01:13] E71: King's Indian: 4 e4 d6 5 h3.} Na6 {[%emt 0:02:54]} 9. f3 {[%emt 0:04:03]} c6 {[%emt 0:01:05]} 10. Qd2 {[%emt 0:01:41] White is slightly better.} cxd5 {[%emt 0:00:13]} 11. cxd5 {[%emt 0:00:02] [#]} Nc5 $146 {[%emt 0:03:21]} ({Predecessor:} 11... Nd7 12. h4 Ndc5 13. h5 f5 14. hxg6 hxg6 15. gxf5 gxf5 16. Bg5 Qe8 17. O-O-O Qg6 18. Bxa6 bxa6 {1-0 (31) Skatchkov,P (2457)-Petrovskiy,V (2159) Chess.com INT 2021}) 12. h4 {[%emt 0:01:28][%cal Bh3h4,Bh4h5,Bh5h6][%mdl 32]} Bd7 {[%emt 0:03:51]} (12... h5 $11) 13. h5 $1 $14 {[%emt 0:01:25]} a4 {[%emt 0:03:53]} 14. Nh3 {[%emt 0:06:37]} Qa5 {[%emt 0:10:53]} 15. h6 {[%emt 0:04:30]} Bh8 {[%emt 0:00:09]} 16. Nd1 {[%emt 0:00:02]} Ne8 {[%emt 0:06:00]} 17. Qxa5 {[%emt 0:04:00]} Rxa5 {[%emt 0:00:21]} 18. Nhf2 {[%emt 0:00:06]} Nc7 {[%emt 0:09:03]} 19. Rc1 $36 {[%emt 0:09:57][%mdl 2048] White fights for an advantage.} Rc8 {[%emt 0:08:59]} 20. Nd3 {[%emt 0:08:24][%cal Rd3c5]} Nxd3+ {[%emt 0:03:36]} 21. Bxd3 {[%emt 0:00:03]} Raa8 $1 {[%emt 0:01:31]} 22. Rh2 {[%emt 0:09:17]} Na6 {[%emt 0:07:24]} (22... Nb5 $14) 23. Bxa6 $16 {[%emt 0:10:09] &Bianco is much more active.} bxa6 {[%emt 0:00:41]} 24. Rhc2 {[%emt 0:00:05] Threatens to win with Rc7.} Rxc2 {[%emt 0:02:01]} 25. Rxc2 {[%emt 0:00:01] aiming for Bg5.} Rc8 {[%emt 0:00:26]} (25... Bf6 $16) 26. Rxc8+ $18 {[%emt 0:04:32]} Bxc8 {[%emt 0:00:01][%mdl 4096] Endgame [#] KBB-KBN} 27. Bg5 {[%emt 0:00:32] Inhibits Bf6. Be7 is the strong threat.} f6 $2 {[%emt 0:11:03]} (27... Kf8 28. Ne3 f6) 28. Bd2 {[%emt 0:01:05]} Kf7 {[%emt 0:01:21]} 29. Bb4 {[%emt 0:00:27]} g5 {[%emt 0:02:08]} 30. Bxd6 {[%emt 0:00:40] White is clearly winning.} Kg6 {[%emt 0:00:07]} 31. Bf8 {[%emt 0:00:04]} Kf7 {[%emt 0:00:27]} 32. Bc5 {[%emt 0:00:26] Weighted Error Value: White=0.05 (flawless) /Black=0.28 (precise)} 1-0

[Event "1st Semana Santa Torrevieja 2022"]
[Site "Torrevieja Alicante"]
[Date "2022.04.17"]
[Round "8.15"]
[White "Makkar, Rajat"]
[Black "Del Rio De Angelis, Salvador G."]
[Result "1/2-1/2"]
[ECO "A13"]
[WhiteElo "2252"]
[BlackElo "2452"]
[Annotator "TA"]
[PlyCount "63"]
[EventDate "2022.04.12"]
[EventType "swiss"]
[EventCountry "ESP"]
[SourceTitle "playchess.com"]
[Source "ChessBase"]
[SourceQuality "1"]
[TimeControl "5400+30"]

{[%evp 9,63,0,14,0,13,0,0,0,-3,-3,-4,-17,-14,-37,-36,-25,-30,-36,0,-12,22,14,23,19,90,81,114,110,113,110,139,133,138,131,131,111,252,263,230,245,223,89,70,62,79,0,0,0,81,70,74,83,66,66,81,12]} 1. Nf3 {[%emt 0:01:32]} Nf6 {[%emt 0:00:24]} 2. c4 {[%emt 0:00:12]} e6 {[%emt 0:00:53]} 3. e3 {[%emt 0:00:24]} g6 {[%emt 0:03:05]} 4. b3 {[%emt 0:01:00]} Bg7 {[%emt 0:00:08]} 5. Bb2 {[%emt 0:00:23]} O-O {[%emt 0:00:09]} 6. Qc2 {[%emt 0:03:21] A13: English Opening: 1...e6.} b6 {[%emt 0:04:00]} 7. Nc3 {[%emt 0:05:17]} Bb7 {[%emt 0:01:12]} 8. Be2 {[%emt 0:00:15] [#] The position is equal.} c5 $146 {[%emt 0:01:35]} ({Predecessor:} 8... d5 9. cxd5 exd5 10. O-O Re8 11. d4 Nbd7 12. Ba3 Rc8 13. Nb5 a6 14. Na7 Ra8 {1-0 (28) Benevenga,A (1814)-Da Cruz,J Porto Alegre 2013}) 9. O-O {[%emt 0:01:00]} Nc6 {[%emt 0:00:24]} 10. d4 {[%emt 0:04:56]} cxd4 {[%emt 0:01:34]} 11. exd4 {[%emt 0:03:22]} d5 {[%emt 0:00:09]} 12. Rad1 {[%emt 0:01:41]} Rc8 {[%emt 0:01:14]} 13. Qb1 {[%emt 0:01:47]} Na5 {[%emt 0:07:43][%cal Rd5c4]} 14. c5 {[%emt 0:02:21]} Ne4 {[%emt 0:03:17]} 15. Nxe4 {[%emt 0:09:48]} dxe4 {[%emt 0:00:08]} 16. Nd2 {[%emt 0:00:27]} Nc6 {[%emt 0:14:58]} (16... Bxd4 $2 17. Bxd4 Qxd4 18. b4 $18) (16... bxc5 $11 17. dxc5 Bxb2 18. Qxb2 Qg5) 17. Nxe4 $16 {[%emt 0:05:23]} Bxd4 {[%emt 0:00:13]} 18. Bb5 {[%emt 0:08:22]} bxc5 {[%emt 0:05:07] [#]} 19. Nxc5 $1 {[%emt 0:01:14][%mdl 512]} Bxc5 {[%emt 0:00:51]} (19... Qb6 20. Nxb7) 20. Rxd8 {[%emt 0:01:34]} Rfxd8 {[%emt 0:00:07]} 21. Qe4 {[%emt 0:02:12] Threatens to win with Bxc6.} Rd5 {[%emt 0:02:41]} 22. h4 {[%emt 0:08:14]} Nd4 {[%emt 0:04:12]} (22... Bb6 $16 23. a4 Na5) 23. Bc4 $18 {[%emt 0:03:37]} Rd7 {[%emt 0:00:35]} 24. Qe5 {[%emt 0:00:52]} Bb6 {[%emt 0:00:17]} 25. h5 {[%emt 0:07:56]} (25. Re1 $1 $18 {and White stays clearly on top.}) 25... Rc5 $16 {[%emt 0:00:33]} 26. Qb8+ {[%emt 0:00:04]} ({Avoid the trap} 26. Qf6 $2 Rxh5 27. Rb1 (27. Re1 $2 Rf5 $19) 27... Rf5 $19) 26... Rc8 $1 {[%emt 0:00:07]} 27. Qe5 {[%emt 0:00:49] aiming for h6. Really sharp!} Rc5 {[%emt 0:00:06]} 28. Qb8+ $40 {[%emt 0:00:03][%mdl 128] White is up to no good.} ({Not} 28. Qf6 $2 Rxh5 29. Rb1 (29. Re1 $2 Rf5 $19) 29... Rf5 $19) 28... Rc8 $1 {[%emt 0:00:05] [#]} 29. Qh2 {[%emt 0:00:11] Black must now prevent Re1.} Rc5 $1 {[%emt 0:00:14] ...Bc7 is the strong threat.} 30. Bxd4 {[%emt 0:10:51]} ({Weaker is} 30. hxg6 {[#]} Nf3+ $1 {[%mdl 512]} 31. gxf3 Rg5+ 32. Qg2 Rxg6 33. Qxg6+ hxg6 $17) 30... Rxd4 {[%emt 0:00:09]} 31. Qb8+ {[%emt 0:00:06]} Bc8 {[%emt 0:00:05]} 32. hxg6 {[%emt 0:03:31] Weighted Error Value: White=0.10 (very precise) /Black=0.15 (very precise)} ({White should try} 32. h6 $16) 1/2-1/2

[Event "1st Semana Santa Torrevieja 2022"]
[Site "Torrevieja Alicante"]
[Date "2022.04.17"]
[Round "8.16"]
[White "De La Cruz Revilla, Miguel"]
[Black "Ayats Llobera, Gerard"]
[Result "1/2-1/2"]
[ECO "B07"]
[WhiteElo "2209"]
[BlackElo "2438"]
[Annotator "TA"]
[PlyCount "94"]
[EventDate "2022.04.12"]
[EventType "swiss"]
[EventCountry "ESP"]
[SourceTitle "playchess.com"]
[Source "ChessBase"]
[SourceQuality "1"]
[TimeControl "5400+30"]

{[%evp 13,94,38,53,0,12,3,10,7,27,0,0,0,0,-35,-39,-59,-48,-82,-64,-82,56,46,61,0,73,42,67,67,62,12,18,0,61,61,105,100,104,104,104,104,89,93,100,21,28,0,108,88,138,129,143,136,139,125,124,119,119,112,117,95,87,95,104,93,116,94,98,98,112,61,131,0,0,0,0,0,0,0,0,0,0,0,8]} 1. e4 {[%emt 0:06:06]} d6 {[%emt 0:00:09]} 2. d4 {[%emt 0:00:20]} g6 {[%emt 0:00:05]} 3. Nc3 {[%emt 0:00:16]} Bg7 {[%emt 0:00:03]} 4. Be3 {[%emt 0:00:19]} c6 {[%emt 0:00:06]} 5. Qd2 {[%emt 0:00:32]} Nd7 {[%emt 0:00:04]} 6. h4 {[%emt 0:00:18]} Ngf6 {[%emt 0:03:20]} 7. f3 {[%emt 0:00:37]} b5 {[%emt 0:03:06][%cal Bb7b5,Bb5b4][%mdl 32]} 8. Bh6 {[%emt 0:05:28] B07: Pirc Defence: Miscellaneous Systems.} Bxh6 {[%emt 0:02:16]} 9. Qxh6 {[%emt 0:00:37]} Qa5 {[%emt 0:10:27]} 10. Qd2 {[%emt 0:04:01] [#]} O-O $146 {[%emt 0:03:47]} ({Predecessor:} 10... Rb8 11. Nge2 Nb6 12. b3 b4 13. Nd1 Ba6 14. Ne3 Nh5 15. c4 bxc3 16. Qxc3 Qxc3+ 17. Nxc3 Bxf1 18. Rxf1 {½-½ (28) Papp,G (2589)-Almasi,Z (2687) Germany 2019}) 11. h5 {[%emt 0:03:52]} b4 {[%emt 0:11:21]} 12. Nd1 {[%emt 0:12:33]} Nxh5 {[%emt 0:16:31][%cal Bf6h5,Bh5g3,Bg3f1][%mdl 32]} 13. g4 {[%emt 0:04:59]} Ng3 {[%emt 0:01:57]} 14. Rh3 {[%emt 0:00:46]} Nxf1 {[%emt 0:00:24]} 15. Qh6 {[%emt 0:04:43][%csl Gh3][%cal Rh6h7] [#]} Nf6 {[%emt 0:00:22] Strongly threatening ...Ba6.} 16. Kxf1 {[%emt 0:00:20]} Re8 {[%emt 0:08:22]} (16... Qb6 $1 $17 17. Ne2 Ba6) 17. Ne2 $14 {[%emt 0:04:45]} e5 {[%emt 0:03:52][%cal Ob4b3]} 18. Nf2 {[%emt 0:07:01]} (18. Ng3 $14) 18... exd4 {[%emt 0:03:20]} (18... b3 $11 {keeps the balance.}) 19. Nxd4 $16 {[%emt 0:01:36]} Qe5 {[%emt 0:00:15]} 20. Rd1 {[%emt 0:02:47]} c5 {[%emt 0:11:35] [#]} 21. f4 $1 {[%emt 0:14:47]} Qe7 $1 $11 {[%emt 0:00:47]} 22. Nf5 {[%emt 0:02:56] The board is on fire.} Bxf5 {[%emt 0:06:33]} (22... Qf8 $1 $11) 23. gxf5 $40 {[%emt 0:00:21][%cal Of2g4][%mdl 128] And now Ng4! would win. Black needs to defend precisely.} Qf8 {[%emt 0:00:15] [#] Threatens to win with ...Qxh6.} 24. Ng4 {[%emt 0:01:24][%mdl 512]} Qg7 {[%emt 0:02:49]} (24... Qxh6 $2 25. Nxf6+ Kg7 26. Nxe8+ Rxe8 27. f6+ Kxf6 28. Rxh6 $18) 25. Qxg7+ {[%emt 0:09:44][%mdl 64] Remove Defender} Kxg7 {[%emt 0:00:06]} 26. Nxf6 {[%emt 0:00:06]} Kxf6 {[%emt 0:00:01]} 27. Rxd6+ $16 {[%emt 0:00:11][%mdl 4096] Endgame KRR-KRR} Ke7 {[%emt 0:00:40]} 28. Rd5 {[%emt 0:00:15]} ({White should play} 28. Ra6 $16) 28... Kf6 $11 {[%emt 0:00:59]} 29. Rd6+ {[%emt 0:05:42]} (29. Re3 $11) 29... Ke7 $1 $16 {[%emt 0:00:13]} 30. Ra6 {[%emt 0:01:00]} Kf8 {[%emt 0:07:43]} (30... h5 $142) 31. Rxh7 {[%emt 0:02:09]} Kg8 {[%emt 0:01:23]} 32. fxg6 {[%emt 0:00:06]} fxg6 {[%emt 0:00:10]} 33. Rd7 {[%emt 0:00:33] 0x0.001a398f4a34dp-1022s more active pieces.} ({Reject} 33. Rhxa7 $6 Rxa7 34. Rxa7 Rxe4 $11) 33... Rxe4 {[%emt 0:00:15]} 34. Rxg6+ {[%emt 0:00:05]} Kh8 {[%emt 0:01:03]} 35. Rf6 {[%emt 0:00:30]} Rae8 {[%emt 0:00:30]} 36. Kf2 {[%emt 0:02:42]} Re2+ {[%emt 0:00:42]} 37. Kf3 {[%emt 0:00:06]} Rxc2 {[%emt 0:00:03]} 38. f5 {[%emt 0:02:14] Threatening mate with Rh6+.} Rh2 {[%emt 0:00:47] Inhibits Rh6+.} 39. Rxa7 {[%emt 0:01:52]} c4 {[%emt 0:00:04]} 40. Kg3 {[%emt 0:00:27]} Rh1 {[%emt 0:02:25]} (40... Rxb2 {leads to mate.} 41. Rh6+ Kg8 42. f6 Re3+ 43. Kf4 Rf2+ 44. Kxe3 Rg2 45. f7+ Kg7 {[#]} 46. Rh7+ $3 {[%mdl 512]} Kg6 47. f8=Q Rg3+ 48. Kf4) 41. Rc7 {[%emt 0:00:55] Against Rc8} (41. Rc6 $16) 41... Rg8+ {[%emt 0:00:05]} (41... c3 $1 $14 42. bxc3 bxc3 43. Rxc3 Ra8) 42. Rg6 {[%emt 0:00:23]} (42. Kf4 $16) 42... Rxg6+ $11 {[%emt 0:00:48] The position is equal.} 43. fxg6 {[%emt 0:00:03]} Rb1 {[%emt 0:00:13]} 44. Kf4 {[%emt 0:01:16]} Rxb2 {[%emt 0:00:10]} 45. Rxc4 {[%emt 0:00:10]} Kg7 {[%emt 0:00:38]} 46. Kf5 {[%emt 0:00:27]} Rf2+ {[%emt 0:00:07]} 47. Rf4 {[%emt 0:00:26]} Rxf4+ {[%emt 0:00:20] Weighted Error Value: White=0.21 (precise) /Black=0.17 (very precise)} 1/2-1/2

[Event "1st Semana Santa Torrevieja 2022"]
[Site "Torrevieja Alicante"]
[Date "2022.04.17"]
[Round "9.1"]
[White "Moussard, Jules"]
[Black "Cuenca Jimenez, Jose Fernando"]
[Result "1-0"]
[ECO "B30"]
[WhiteElo "2630"]
[BlackElo "2552"]
[Annotator "TA"]
[PlyCount "263"]
[EventDate "2022.04.12"]
[EventType "swiss"]
[EventCountry "ESP"]
[SourceTitle "playchess.com"]
[Source "ChessBase"]
[SourceQuality "1"]
[TimeControl "5400+30"]

{[%evp 96,263,65,65,65,65,65,65,65,65,65,65,65,65,65,65,65,65,65,65,65,65,65,71,80,65,65,65,125,65,65,48,65,65,65,64,65,64,64,64,64,64,64,51,64,64,64,64,65,65,65,65,65,65,65,65,65,65,65,64,64,64,64,64,64,64,64,64,64,34,64,37,38,38,40,0,34,0,34,34,51,57,64,64,64,64,64,64,64,42,64,64,64,64,64,60,61,60,71,71,71,71,71,71,71,71,202,64,64,59,59,51,64,64,64,64,67,67,72,34,34,34,34,34,34,34,56,0,0,0,48,34,34,0,34,0,0,0,0,0,0,0,29961,29962,29965,29966,29966,29967,29967,29968,29968,29969,29970,29971,29977,29978,29978,29976,29976,29976,29976,29977,29977,29978,29980,29978,29979,29980,29980,29981]} 1. e4 {[%emt 0:07:24]} c5 {[%emt 0:00:18]} 2. Nf3 {[%emt 0:00:23]} Nc6 {[%emt 0:00:15]} 3. Bb5 {[%emt 0:00:29]} e5 {[%emt 0:01:55]} 4. O-O {[%emt 0:00:35]} Bd6 {[%emt 0:00:33]} 5. c3 {[%emt 0:05:14]} a6 {[%emt 0:00:27]} 6. Ba4 {[%emt 0:00:08]} b5 {[%emt 0:00:34]} 7. Bc2 {[%emt 0:00:26]} Nge7 {[%emt 0:00:28]} 8. a4 {[%emt 0:01:25]} b4 {[%emt 0:02:05]} 9. d3 {[%emt 0:00:57]} O-O {[%emt 0:06:17]} 10. Be3 {[%emt 0:00:59]} Ng6 {[%emt 0:02:41]} 11. Nbd2 {[%emt 0:02:30]} Be7 {[%emt 0:01:37]} 12. Bb3 {[%emt 0:09:17]} Na5 {[%emt 0:28:20]} 13. Bd5 {[%emt 0:07:21]} Rb8 {[%emt 0:00:34]} 14. d4 {[%emt 0:06:29]} bxc3 {[%emt 0:06:46]} 15. bxc3 {[%emt 0:00:09]} cxd4 {[%emt 0:08:25]} 16. cxd4 {[%emt 0:00:04]} Bf6 {[%emt 0:04:59]} 17. dxe5 {[%emt 0:04:46]} Nxe5 {[%emt 0:00:05]} 18. Nxe5 {[%emt 0:00:12]} Bxe5 {[%emt 0:00:04]} 19. Rc1 {[%emt 0:00:05]} Bb7 {[%emt 0:03:42]} 20. Nf3 {[%emt 0:01:28]} Bb2 {[%emt 0:02:34]} 21. Rc2 {[%emt 0:05:18]} Bf6 {[%emt 0:02:02]} 22. Bxb7 {[%emt 0:02:38]} Rxb7 {[%emt 0:01:12]} 23. Qd3 {[%emt 0:00:09]} Nc6 {[%emt 0:02:47]} 24. Bc5 {[%emt 0:06:20]} Nb4 {[%emt 0:04:38]} 25. Bxb4 {[%emt 0:01:37]} Rxb4 {[%emt 0:00:03]} 26. e5 {[%emt 0:00:48]} Be7 {[%emt 0:00:13]} 27. Qxa6 {[%emt 0:03:35]} Qa8 {[%emt 0:00:04]} 28. Qxa8 {[%emt 0:03:46]} Rxa8 {[%emt 0:00:10]} 29. Rc7 {[%emt 0:00:04]} Rbxa4 {[%emt 0:00:22]} 30. Rxd7 {[%emt 0:00:03]} R4a7 {[%emt 0:00:34]} 31. Rxa7 {[%emt 0:00:48]} Rxa7 {[%emt 0:00:04]} 32. Rc1 {[%emt 0:00:09]} Rd7 {[%emt 0:02:35]} 33. Kf1 {[%emt 0:01:14]} g6 {[%emt 0:00:17]} 34. Ke2 {[%emt 0:00:43]} f6 {[%emt 0:01:37]} 35. Rc6 {[%emt 0:02:22]} fxe5 {[%emt 0:00:52]} 36. Nxe5 {[%emt 0:00:06]} Rb7 {[%emt 0:00:11]} 37. g3 {[%emt 0:01:00]} Kg7 {[%emt 0:00:12]} 38. h4 {[%emt 0:00:17]} Bf6 {[%emt 0:01:48]} 39. Nd3 {[%emt 0:00:02]} Bd4 {[%emt 0:02:12]} 40. Kf3 {[%emt 0:03:17]} Rf7+ {[%emt 0:00:22]} 41. Kg2 {[%emt 0:00:03]} Rf6 {[%emt 0:03:04]} 42. Rc7+ {[%emt 0:00:05]} Rf7 {[%emt 0:00:28]} 43. Rc4 {[%emt 0:00:03]} Rd7 {[%emt 0:01:39]} 44. Nf4 {[%emt 0:00:23]} Kf7 {[%emt 0:00:39]} 45. Kf3 {[%emt 0:00:39]} Be5 {[%emt 0:00:27]} 46. Ne2 {[%emt 0:00:31]} Bf6 {[%emt 0:01:20]} 47. Rc5 {[%emt 0:00:28]} Rb7 {[%emt 0:01:02]} 48. Nc1 {[%emt 0:01:24]} Rd7 {[%emt 0:00:14]} 49. Rc4 {[%emt 0:01:27]} Be5 {[%emt 0:01:10]} 50. Ke2 {[%emt 0:00:41]} Rc7 {[%emt 0:00:31]} 51. Nd3 {[%emt 0:00:09]} Re7 {[%emt 0:01:10]} (51... Bxg3 $2 52. fxg3 $1 Re7+ 53. Kf3 $18) 52. Kf3 {[%emt 0:00:04]} Bf6 {[%emt 0:00:14]} 53. Rc6 {[%emt 0:00:50]} Re6 {[%emt 0:00:32]} 54. Rc5 {[%emt 0:00:26]} Re7 {[%emt 0:00:17]} 55. Rd5 {[%emt 0:00:33]} Ra7 {[%emt 0:01:04]} 56. Rb5 {[%emt 0:00:48]} Rc7 {[%emt 0:00:24]} 57. Nc5 {[%emt 0:00:15]} Be7 {[%emt 0:00:31]} 58. Ne4 {[%emt 0:00:11]} Ra7 {[%emt 0:00:10]} 59. Kf4 {[%emt 0:00:21]} Rd7 {[%emt 0:01:04]} 60. h5 {[%emt 0:01:40]} Kg7 {[%emt 0:01:30]} 61. f3 {[%emt 0:00:52]} Bd6+ {[%emt 0:00:50]} (61... Ra7 $14) 62. Kg4 {[%emt 0:01:48]} (62. Nxd6 $16 {Black must now prevent Rb7.} Rxd6 63. g4) 62... Be7 $14 {[%emt 0:00:06]} 63. Rb6 {[%emt 0:00:14]} Rd5 {[%emt 0:01:16]} 64. hxg6 {[%emt 0:04:10]} hxg6 {[%emt 0:00:01]} 65. Rc6 {[%emt 0:00:20]} Kf7 {[%emt 0:00:55]} 66. Kf4 {[%emt 0:01:40]} Rf5+ {[%emt 0:00:27]} 67. Ke3 $1 {[%emt 0:00:01]} Ra5 {[%emt 0:00:08]} 68. Rc7 {[%emt 0:00:12]} Ke6 {[%emt 0:00:16]} 69. Rb7 {[%emt 0:00:44]} Ra3+ {[%emt 0:00:15]} 70. Kf4 {[%emt 0:00:04]} Ra5 {[%emt 0:00:12]} 71. Kg4 {[%emt 0:01:26]} Rd5 {[%emt 0:00:33]} 72. f4 {[%emt 0:00:28]} Ra5 {[%emt 0:00:26]} 73. Nd2 {[%emt 0:00:26]} Rd5 {[%emt 0:04:24]} 74. Nc4 {[%emt 0:01:28]} Bf6 $1 {[%emt 0:00:30]} 75. Rb6+ {[%emt 0:00:23]} Ke7 $1 {[%emt 0:00:41]} 76. Rc6 {[%emt 0:00:10]} Rd4 {[%emt 0:01:36]} 77. Nb6 {[%emt 0:02:11]} Kf7 $1 {[%emt 0:00:32]} 78. Nc8 {[%emt 0:00:03]} Bd8 {[%emt 0:01:20]} 79. Nd6+ {[%emt 0:02:31]} Kg7 {[%emt 0:00:01]} 80. Ra6 {[%emt 0:00:08]} Be7 {[%emt 0:00:48]} 81. Nb5 {[%emt 0:01:09]} Rd3 {[%emt 0:00:26]} 82. Rc6 {[%emt 0:01:52]} Kf7 {[%emt 0:00:09]} 83. Nc3 {[%emt 0:00:19]} Rd4 {[%emt 0:00:11]} 84. Ne2 {[%emt 0:00:17]} ({Don't take} 84. Rc7 Ke6 $16) 84... Rb4 {[%emt 0:00:21]} 85. Nc3 {[%emt 0:04:42]} Rd4 $1 {[%emt 0:00:04]} 86. Nb5 {[%emt 0:00:08]} Rd5 {[%emt 0:00:28]} 87. Rb6 {[%emt 0:00:57]} Rd7 {[%emt 0:01:35]} 88. Ra6 {[%emt 0:00:10]} Rd8 {[%emt 0:01:01]} 89. Ra7 {[%emt 0:00:33]} Rd5 {[%emt 0:00:26]} 90. Nc3 {[%emt 0:00:17]} Rd4 {[%emt 0:00:11]} 91. Ne2 {[%emt 0:00:03]} Rb4 {[%emt 0:00:27]} 92. Kf3 {[%emt 0:00:47]} Ke6 {[%emt 0:00:36]} 93. Ra5 {[%emt 0:01:50]} Bf6 {[%emt 0:00:34]} 94. Nc1 {[%emt 0:00:30]} Rd4 {[%emt 0:00:08]} 95. g4 {[%emt 0:01:07]} Be7 {[%emt 0:00:54]} 96. Ke3 {[%emt 0:00:34]} Rd5 {[%emt 0:00:41]} 97. Ra6+ {[%emt 0:00:03]} Rd6 {[%emt 0:00:15]} 98. Ra4 {[%emt 0:00:02]} Rb6 {[%emt 0:00:59]} 99. Nd3 {[%emt 0:00:05]} Bd6 {[%emt 0:00:12]} 100. Ke4 {[%emt 0:00:14]} Rc6 {[%emt 0:00:32]} (100... Kf6 $16) 101. Ne1 {[%emt 0:00:59]} (101. Ne5 $1 $18 {[%cal Re5c6]} Bxe5 102. fxe5) 101... Rb6 $14 {[%emt 0:00:25]} 102. Nc2 {[%emt 0:00:07]} Bc5 {[%emt 0:00:30]} 103. Ra5 {[%emt 0:02:00]} Rc6 {[%emt 0:00:08]} 104. Ne1 {[%emt 0:00:07]} Bb4 {[%emt 0:01:39]} 105. Re5+ {[%emt 0:00:04]} Kf7 {[%emt 0:00:16]} 106. Nd3 {[%emt 0:00:18]} Bd6 {[%emt 0:00:14]} 107. Kd5 {[%emt 0:00:20]} Rc3 {[%emt 0:00:54]} 108. Kd4 {[%emt 0:02:15]} Ra3 {[%emt 0:00:07]} 109. Rb5 {[%emt 0:00:50]} Ra4+ {[%emt 0:00:01]} 110. Ke3 {[%emt 0:00:15]} Ke6 {[%emt 0:00:15] [#]} 111. Rb6 {[%emt 0:00:12]} ({White should play} 111. Re5+ $1 $14 Kf7 (111... Kf6 112. Re4) 112. Re4) 111... Kd5 $11 {[%emt 0:00:18]} 112. Rb5+ {[%emt 0:01:31]} (112. Rb1 $11) 112... Ke6 $14 {[%emt 0:00:25]} 113. Rc5 {[%emt 0:00:17]} Ke7 {[%emt 0:00:56]} 114. Rc6 {[%emt 0:00:22]} Kd7 {[%emt 0:01:07]} (114... g5 $5) 115. Rb6 {[%emt 0:01:14]} g5 {[%emt 0:00:54]} 116. Rb7+ {[%emt 0:00:02]} Kc6 {[%emt 0:00:19]} 117. Rf7 {[%emt 0:00:06]} gxf4+ {[%emt 0:00:17]} 118. Nxf4 {[%emt 0:00:04]} Bxf4+ $2 {[%emt 0:01:18][%mdl 8192]} (118... Ra3+ $11 119. Nd3 Kd5) 119. Rxf4 {[%emt 0:00:04]} Ra3+ {[%emt 0:01:14]} 120. Ke4 $1 {[%emt 0:00:04]} Ra5 {[%emt 0:00:41]} 121. Rf6+ {[%emt 0:00:35]} Kd7 {[%emt 0:00:06] [#]} 122. Kf4 $1 {[%emt 0:00:03]} Ke7 {[%emt 0:00:27]} 123. g5 {[%emt 0:00:03]} Ra8 {[%emt 0:01:02] [#]} 124. Kf5 $1 {[%emt 0:00:07]} Rg8 {[%emt 0:00:31]} 125. g6 {[%emt 0:01:17]} Rb8 {[%emt 0:00:28]} 126. Rf7+ {[%emt 0:00:20]} Ke8 {[%emt 0:00:03]} 127. Kf6 {[%emt 0:00:46]} Rb6+ {[%emt 0:00:19]} 128. Kg7 {[%emt 0:00:06]} Rb1 {[%emt 0:00:21]} 129. Kg8 {[%emt 0:00:26]} Rh1 {[%emt 0:00:31]} 130. g7 {[%emt 0:00:18]} Rh2 {[%emt 0:00:19]} 131. Rf4 {[%emt 0:00:04]} Re2 {[%emt 0:01:28]} 132. Rh4 {[%emt 0:00:16]} 1-0